{"text_format":"3","workbook":"xlsx","n_sheets":1,"sheets":["Pelno ir nuostolio ataskaita"],"not_rendered":{"defined_names":2},"read":"whole","date_system":"1900"}

{"sheet":"Pelno ir nuostolio ataskaita","index":0,"n_rows":68,"n_cols":10,"rows_kept":68,"merged":[[10,1,10,9],[19,1,19,9],[28,1,28,9],[44,1,44,9],[50,1,50,9],[64,1,64,9]]}
[null,"Pelnas ir nuostolis Išrašas"]
[]
[{"$nulls":3},"ANKSTESNIS LAIKOTARPIS ","BIUDŽETAS ","DABARTINIS LAIKOTARPIS ",null,"DABARTINIS LAIKOTARPIS KAIP PARDAVIMO % ","% POKYTIS, PALYGINTI SU ANKSTESNIU LAIKOTARPIU ","% SKIRTUMAS NUO BIUDŽETO "]
[null,"Pardavimo pajamos"]
[]
[null,"1 produktas / paslauga",null,40,50,45,null,{"$f":"IFERROR(PardavimoPajamos[[#This Row],[Dabartinis Laikotarpis]]/SUBTOTAL(109,PardavimoPajamos[Dabartinis Laikotarpis]),0)","v":{"v":1,"d":"100.0%"}},{"$f":"IFERROR(PardavimoPajamos[[#This Row],[Dabartinis Laikotarpis]]/PardavimoPajamos[[#This Row],[Ankstesnis Laikotarpis]]-1,0)","v":{"v":0.125,"d":"12.5%"}},{"$f":"IFERROR(PardavimoPajamos[[#This Row],[Dabartinis Laikotarpis]]/PardavimoPajamos[[#This Row],[Biudžetas]]-1,0)","v":{"v":-0.09999999999999998,"d":"-10.0%"}}]
[null,"2 produktas / paslauga",{"$nulls":5},{"$f":"IFERROR(PardavimoPajamos[[#This Row],[Dabartinis Laikotarpis]]/SUBTOTAL(109,PardavimoPajamos[Dabartinis Laikotarpis]),0)","v":0},{"$f":"IFERROR(PardavimoPajamos[[#This Row],[Dabartinis Laikotarpis]]/PardavimoPajamos[[#This Row],[Ankstesnis Laikotarpis]]-1,0)","v":0},{"$f":"IFERROR(PardavimoPajamos[[#This Row],[Dabartinis Laikotarpis]]/PardavimoPajamos[[#This Row],[Biudžetas]]-1,0)","v":0}]
[null,"3 produktas / paslauga",{"$nulls":5},{"$f":"IFERROR(PardavimoPajamos[[#This Row],[Dabartinis Laikotarpis]]/SUBTOTAL(109,PardavimoPajamos[Dabartinis Laikotarpis]),0)","v":0},{"$f":"IFERROR(PardavimoPajamos[[#This Row],[Dabartinis Laikotarpis]]/PardavimoPajamos[[#This Row],[Ankstesnis Laikotarpis]]-1,0)","v":0},{"$f":"IFERROR(PardavimoPajamos[[#This Row],[Dabartinis Laikotarpis]]/PardavimoPajamos[[#This Row],[Biudžetas]]-1,0)","v":0}]
[null,"4 produktas / paslauga",{"$nulls":5},{"$f":"IFERROR(PardavimoPajamos[[#This Row],[Dabartinis Laikotarpis]]/SUBTOTAL(109,PardavimoPajamos[Dabartinis Laikotarpis]),0)","v":0},{"$f":"IFERROR(PardavimoPajamos[[#This Row],[Dabartinis Laikotarpis]]/PardavimoPajamos[[#This Row],[Ankstesnis Laikotarpis]]-1,0)","v":0},{"$f":"IFERROR(PardavimoPajamos[[#This Row],[Dabartinis Laikotarpis]]/PardavimoPajamos[[#This Row],[Biudžetas]]-1,0)","v":0}]
[null,"Iš viso",null,{"$f":"SUBTOTAL(109,PardavimoPajamos[Ankstesnis Laikotarpis])","v":40},{"$f":"SUBTOTAL(109,PardavimoPajamos[Biudžetas])","v":50},{"$f":"SUBTOTAL(109,PardavimoPajamos[Dabartinis Laikotarpis])","v":45},null,{"$f":"IFERROR(PardavimoPajamos[[#Totals],[Dabartinis Laikotarpis]]/PardavimoPajamos[[#Totals],[Dabartinis Laikotarpis]],0)","v":{"v":1,"d":"100.0%"}},{"$f":"IFERROR(PardavimoPajamos[[#Totals],[Dabartinis Laikotarpis]]/PardavimoPajamos[[#Totals],[Ankstesnis Laikotarpis]]-1,0)","v":{"v":0.125,"d":"12.5%"}},{"$f":"IFERROR(PardavimoPajamos[[#Totals],[Dabartinis Laikotarpis]]/PardavimoPajamos[[#Totals],[Biudžetas]]-1,0)","v":{"v":-0.09999999999999998,"d":"-10.0%"}}]
[]
[null,"Pardavimo išlaidos"]
[]
[null,"1 produktas / paslauga",null,null,2,3,null,{"$f":"IFERROR(PardavimoKaštai[[#This Row],[Dabartinis Laikotarpis]]/SUBTOTAL(109,PardavimoPajamos[Dabartinis Laikotarpis]),0)","v":{"v":0.06666666666666667,"d":"6.7%"}},{"$f":"IFERROR(PardavimoKaštai[[#This Row],[Dabartinis Laikotarpis]]/PardavimoKaštai[[#This Row],[Ankstesnis Laikotarpis]]-1,0)","v":0},{"$f":"IFERROR(PardavimoKaštai[[#This Row],[Dabartinis Laikotarpis]]/PardavimoKaštai[[#This Row],[Biudžetas]]-1,0)","v":{"v":0.5,"d":"50.0%"}}]
[null,"2 produktas / paslauga",null,null,5,3,null,{"$f":"IFERROR(PardavimoKaštai[[#This Row],[Dabartinis Laikotarpis]]/SUBTOTAL(109,PardavimoPajamos[Dabartinis Laikotarpis]),0)","v":{"v":0.06666666666666667,"d":"6.7%"}},{"$f":"IFERROR(PardavimoKaštai[[#This Row],[Dabartinis Laikotarpis]]/PardavimoKaštai[[#This Row],[Ankstesnis Laikotarpis]]-1,0)","v":0},{"$f":"IFERROR(PardavimoKaštai[[#This Row],[Dabartinis Laikotarpis]]/PardavimoKaštai[[#This Row],[Biudžetas]]-1,0)","v":{"v":-0.4,"d":"-40.0%"}}]
[null,"3 produktas / paslauga",{"$nulls":3},1,null,{"$f":"IFERROR(PardavimoKaštai[[#This Row],[Dabartinis Laikotarpis]]/SUBTOTAL(109,PardavimoPajamos[Dabartinis Laikotarpis]),0)","v":{"v":0.022222222222222223,"d":"2.2%"}},{"$f":"IFERROR(PardavimoKaštai[[#This Row],[Dabartinis Laikotarpis]]/PardavimoKaštai[[#This Row],[Ankstesnis Laikotarpis]]-1,0)","v":0},{"$f":"IFERROR(PardavimoKaštai[[#This Row],[Dabartinis Laikotarpis]]/PardavimoKaštai[[#This Row],[Biudžetas]]-1,0)","v":0}]
[null,"4 produktas / paslauga",{"$nulls":5},{"$f":"IFERROR(PardavimoKaštai[[#This Row],[Dabartinis Laikotarpis]]/SUBTOTAL(109,PardavimoPajamos[Dabartinis Laikotarpis]),0)","v":0},{"$f":"IFERROR(PardavimoKaštai[[#This Row],[Dabartinis Laikotarpis]]/PardavimoKaštai[[#This Row],[Ankstesnis Laikotarpis]]-1,0)","v":0},{"$f":"IFERROR(PardavimoKaštai[[#This Row],[Dabartinis Laikotarpis]]/PardavimoKaštai[[#This Row],[Biudžetas]]-1,0)","v":0}]
[null,"Iš viso",null,{"$f":"SUBTOTAL(109,PardavimoKaštai[Ankstesnis Laikotarpis])","v":0},{"$f":"SUBTOTAL(109,PardavimoKaštai[Biudžetas])","v":7},{"$f":"SUBTOTAL(109,PardavimoKaštai[Dabartinis Laikotarpis])","v":7},null,{"$f":"IFERROR(PardavimoKaštai[[#Totals],[Dabartinis Laikotarpis]]/SUBTOTAL(109,PardavimoPajamos[Dabartinis Laikotarpis]),0)","v":{"v":0.15555555555555556,"d":"15.6%"}},{"$f":"IFERROR(PardavimoKaštai[[#Totals],[Dabartinis Laikotarpis]]/PardavimoKaštai[[#Totals],[Ankstesnis Laikotarpis]]-1,0)","v":0},{"$f":"IFERROR(PardavimoKaštai[[#Totals],[Dabartinis Laikotarpis]]/PardavimoKaštai[[#Totals],[Biudžetas]]-1,0)","v":0}]
[{"$nulls":9},{"$f":"IFERROR(PardavimoKaštai[[#Totals],[Dabartinis Laikotarpis]]/PardavimoKaštai[[#Totals],[Biudžetas]]-1,0)","v":0}]
[]
[null,"Bendrasis pelnas",null,{"$f":"SUM(PardavimoPajamos[Ankstesnis Laikotarpis])-SUM(PardavimoKaštai[Ankstesnis Laikotarpis])","v":40},{"$f":"SUM(PardavimoPajamos[Biudžetas])-SUM(PardavimoKaštai[Biudžetas])","v":43},{"$f":"SUM(PardavimoPajamos[Dabartinis Laikotarpis])-SUM(PardavimoKaštai[Dabartinis Laikotarpis])","v":38},null,{"$f":"IFERROR(F21/SUBTOTAL(109,PardavimoPajamos[Dabartinis Laikotarpis]),0)","v":{"v":0.8444444444444444,"d":"84.4%"}},{"$f":"IFERROR(F21/D21-1,0)","v":{"v":-0.050000000000000044,"d":"-5.0%"}},{"$f":"IFERROR(F21/E21-1,0)","v":{"v":-0.11627906976744184,"d":"-11.6%"}}]
[]
[null,"Veiklos išlaidos: pardavimas ir rinkodara"]
[]
[null,"Reklama",null,null,22,19,null,{"$f":"IFERROR(PardavimasIrRinkodara[[#This Row],[Dabartinis Laikotarpis]]/SUBTOTAL(109,PardavimoPajamos[Dabartinis Laikotarpis]),0)","v":{"v":0.4222222222222222,"d":"42.2%"}},{"$f":"IFERROR(PardavimasIrRinkodara[[#This Row],[Dabartinis Laikotarpis]]/PardavimasIrRinkodara[[#This Row],[Ankstesnis Laikotarpis]]-1,0)","v":0},{"$f":"IFERROR(PardavimasIrRinkodara[[#This Row],[Dabartinis Laikotarpis]]/PardavimasIrRinkodara[[#This Row],[Biudžetas]]-1,0)","v":{"v":-0.13636363636363635,"d":"-13.6%"}}]
[null,"Tiesioginė rinkodara",{"$nulls":5},{"$f":"IFERROR(PardavimasIrRinkodara[[#This Row],[Dabartinis Laikotarpis]]/SUBTOTAL(109,PardavimoPajamos[Dabartinis Laikotarpis]),0)","v":0},{"$f":"IFERROR(PardavimasIrRinkodara[[#This Row],[Dabartinis Laikotarpis]]/PardavimasIrRinkodara[[#This Row],[Ankstesnis Laikotarpis]]-1,0)","v":0},{"$f":"IFERROR(PardavimasIrRinkodara[[#This Row],[Dabartinis Laikotarpis]]/PardavimasIrRinkodara[[#This Row],[Biudžetas]]-1,0)","v":0}]
[null,"Kitos išlaidos (nurodyti)",{"$nulls":5},{"$f":"IFERROR(PardavimasIrRinkodara[[#This Row],[Dabartinis Laikotarpis]]/SUBTOTAL(109,PardavimoPajamos[Dabartinis Laikotarpis]),0)","v":0},{"$f":"IFERROR(PardavimasIrRinkodara[[#This Row],[Dabartinis Laikotarpis]]/PardavimasIrRinkodara[[#This Row],[Ankstesnis Laikotarpis]]-1,0)","v":0},{"$f":"IFERROR(PardavimasIrRinkodara[[#This Row],[Dabartinis Laikotarpis]]/PardavimasIrRinkodara[[#This Row],[Biudžetas]]-1,0)","v":0}]
[null,"Iš viso",null,{"$f":"SUBTOTAL(109,PardavimasIrRinkodara[Ankstesnis Laikotarpis])","v":0},{"$f":"SUBTOTAL(109,PardavimasIrRinkodara[Biudžetas])","v":22},{"$f":"SUBTOTAL(109,PardavimasIrRinkodara[Dabartinis Laikotarpis])","v":19},null,{"$f":"IFERROR(PardavimasIrRinkodara[[#Totals],[Dabartinis Laikotarpis]]/SUBTOTAL(109,PardavimoPajamos[Dabartinis Laikotarpis]),0)","v":{"v":0.4222222222222222,"d":"42.2%"}},{"$f":"IFERROR(PardavimasIrRinkodara[[#Totals],[Dabartinis Laikotarpis]]/PardavimasIrRinkodara[[#Totals],[Ankstesnis Laikotarpis]]-1,0)","v":0},{"$f":"IFERROR(PardavimasIrRinkodara[[#Totals],[Dabartinis Laikotarpis]]/PardavimasIrRinkodara[[#Totals],[Biudžetas]]-1,0)","v":{"v":-0.13636363636363635,"d":"-13.6%"}}]
[]
[null,"Veiklos išlaidos: bendrosios ir administravimo"]
[]
[null,"Atlyginimai",null,null,56,51,null,{"$f":"IFERROR(BendrosiosIrAdministracinės[[#This Row],[Dabartinis Laikotarpis]]/SUBTOTAL(109,PardavimoPajamos[Dabartinis Laikotarpis]),0)","v":{"v":1.1333333333333333,"d":"113.3%"}},{"$f":"IFERROR(BendrosiosIrAdministracinės[[#This Row],[Dabartinis Laikotarpis]]/BendrosiosIrAdministracinės[[#This Row],[Ankstesnis Laikotarpis]]-1,0)","v":0},{"$f":"IFERROR(BendrosiosIrAdministracinės[[#This Row],[Dabartinis Laikotarpis]]/BendrosiosIrAdministracinės[[#This Row],[Biudžetas]]-1,0)","v":{"v":-0.0892857142857143,"d":"-8.9%"}}]
[null,"Išorinės paslaugos",{"$nulls":5},{"$f":"IFERROR(BendrosiosIrAdministracinės[[#This Row],[Dabartinis Laikotarpis]]/SUBTOTAL(109,PardavimoPajamos[Dabartinis Laikotarpis]),0)","v":0},{"$f":"IFERROR(BendrosiosIrAdministracinės[[#This Row],[Dabartinis Laikotarpis]]/BendrosiosIrAdministracinės[[#This Row],[Ankstesnis Laikotarpis]]-1,0)","v":0},{"$f":"IFERROR(BendrosiosIrAdministracinės[[#This Row],[Dabartinis Laikotarpis]]/BendrosiosIrAdministracinės[[#This Row],[Biudžetas]]-1,0)","v":0}]
[null,"Reikmenys",{"$nulls":5},{"$f":"IFERROR(BendrosiosIrAdministracinės[[#This Row],[Dabartinis Laikotarpis]]/SUBTOTAL(109,PardavimoPajamos[Dabartinis Laikotarpis]),0)","v":0},{"$f":"IFERROR(BendrosiosIrAdministracinės[[#This Row],[Dabartinis Laikotarpis]]/BendrosiosIrAdministracinės[[#This Row],[Ankstesnis Laikotarpis]]-1,0)","v":0},{"$f":"IFERROR(BendrosiosIrAdministracinės[[#This Row],[Dabartinis Laikotarpis]]/BendrosiosIrAdministracinės[[#This Row],[Biudžetas]]-1,0)","v":0}]
[null,"Maitinimas ir pramogos",{"$nulls":5},{"$f":"IFERROR(BendrosiosIrAdministracinės[[#This Row],[Dabartinis Laikotarpis]]/SUBTOTAL(109,PardavimoPajamos[Dabartinis Laikotarpis]),0)","v":0},{"$f":"IFERROR(BendrosiosIrAdministracinės[[#This Row],[Dabartinis Laikotarpis]]/BendrosiosIrAdministracinės[[#This Row],[Ankstesnis Laikotarpis]]-1,0)","v":0},{"$f":"IFERROR(BendrosiosIrAdministracinės[[#This Row],[Dabartinis Laikotarpis]]/BendrosiosIrAdministracinės[[#This Row],[Biudžetas]]-1,0)","v":0}]
[null,"Nuoma",{"$nulls":5},{"$f":"IFERROR(BendrosiosIrAdministracinės[[#This Row],[Dabartinis Laikotarpis]]/SUBTOTAL(109,PardavimoPajamos[Dabartinis Laikotarpis]),0)","v":0},{"$f":"IFERROR(BendrosiosIrAdministracinės[[#This Row],[Dabartinis Laikotarpis]]/BendrosiosIrAdministracinės[[#This Row],[Ankstesnis Laikotarpis]]-1,0)","v":0},{"$f":"IFERROR(BendrosiosIrAdministracinės[[#This Row],[Dabartinis Laikotarpis]]/BendrosiosIrAdministracinės[[#This Row],[Biudžetas]]-1,0)","v":0}]
[null,"Telefonas",{"$nulls":5},{"$f":"IFERROR(BendrosiosIrAdministracinės[[#This Row],[Dabartinis Laikotarpis]]/SUBTOTAL(109,PardavimoPajamos[Dabartinis Laikotarpis]),0)","v":0},{"$f":"IFERROR(BendrosiosIrAdministracinės[[#This Row],[Dabartinis Laikotarpis]]/BendrosiosIrAdministracinės[[#This Row],[Ankstesnis Laikotarpis]]-1,0)","v":0},{"$f":"IFERROR(BendrosiosIrAdministracinės[[#This Row],[Dabartinis Laikotarpis]]/BendrosiosIrAdministracinės[[#This Row],[Biudžetas]]-1,0)","v":0}]
[null,"Komunalinės paslaugos",{"$nulls":5},{"$f":"IFERROR(BendrosiosIrAdministracinės[[#This Row],[Dabartinis Laikotarpis]]/SUBTOTAL(109,PardavimoPajamos[Dabartinis Laikotarpis]),0)","v":0},{"$f":"IFERROR(BendrosiosIrAdministracinės[[#This Row],[Dabartinis Laikotarpis]]/BendrosiosIrAdministracinės[[#This Row],[Ankstesnis Laikotarpis]]-1,0)","v":0},{"$f":"IFERROR(BendrosiosIrAdministracinės[[#This Row],[Dabartinis Laikotarpis]]/BendrosiosIrAdministracinės[[#This Row],[Biudžetas]]-1,0)","v":0}]
[null,"Nusidėvėjimas",{"$nulls":5},{"$f":"IFERROR(BendrosiosIrAdministracinės[[#This Row],[Dabartinis Laikotarpis]]/SUBTOTAL(109,PardavimoPajamos[Dabartinis Laikotarpis]),0)","v":0},{"$f":"IFERROR(BendrosiosIrAdministracinės[[#This Row],[Dabartinis Laikotarpis]]/BendrosiosIrAdministracinės[[#This Row],[Ankstesnis Laikotarpis]]-1,0)","v":0},{"$f":"IFERROR(BendrosiosIrAdministracinės[[#This Row],[Dabartinis Laikotarpis]]/BendrosiosIrAdministracinės[[#This Row],[Biudžetas]]-1,0)","v":0}]
[null,"Draudimas",{"$nulls":5},{"$f":"IFERROR(BendrosiosIrAdministracinės[[#This Row],[Dabartinis Laikotarpis]]/SUBTOTAL(109,PardavimoPajamos[Dabartinis Laikotarpis]),0)","v":0},{"$f":"IFERROR(BendrosiosIrAdministracinės[[#This Row],[Dabartinis Laikotarpis]]/BendrosiosIrAdministracinės[[#This Row],[Ankstesnis Laikotarpis]]-1,0)","v":0},{"$f":"IFERROR(BendrosiosIrAdministracinės[[#This Row],[Dabartinis Laikotarpis]]/BendrosiosIrAdministracinės[[#This Row],[Biudžetas]]-1,0)","v":0}]
[null,"Taisymas ir priežiūra",{"$nulls":5},{"$f":"IFERROR(BendrosiosIrAdministracinės[[#This Row],[Dabartinis Laikotarpis]]/SUBTOTAL(109,PardavimoPajamos[Dabartinis Laikotarpis]),0)","v":0},{"$f":"IFERROR(BendrosiosIrAdministracinės[[#This Row],[Dabartinis Laikotarpis]]/BendrosiosIrAdministracinės[[#This Row],[Ankstesnis Laikotarpis]]-1,0)","v":0},{"$f":"IFERROR(BendrosiosIrAdministracinės[[#This Row],[Dabartinis Laikotarpis]]/BendrosiosIrAdministracinės[[#This Row],[Biudžetas]]-1,0)","v":0}]
[null,"Kitos išlaidos (nurodyti)",{"$nulls":5},{"$f":"IFERROR(BendrosiosIrAdministracinės[[#This Row],[Dabartinis Laikotarpis]]/SUBTOTAL(109,PardavimoPajamos[Dabartinis Laikotarpis]),0)","v":0},{"$f":"IFERROR(BendrosiosIrAdministracinės[[#This Row],[Dabartinis Laikotarpis]]/BendrosiosIrAdministracinės[[#This Row],[Ankstesnis Laikotarpis]]-1,0)","v":0},{"$f":"IFERROR(BendrosiosIrAdministracinės[[#This Row],[Dabartinis Laikotarpis]]/BendrosiosIrAdministracinės[[#This Row],[Biudžetas]]-1,0)","v":0}]
[null,"Iš viso",null,{"$f":"SUBTOTAL(109,BendrosiosIrAdministracinės[Ankstesnis Laikotarpis])","v":0},{"$f":"SUBTOTAL(109,BendrosiosIrAdministracinės[Biudžetas])","v":56},{"$f":"SUBTOTAL(109,BendrosiosIrAdministracinės[Dabartinis Laikotarpis])","v":51},null,{"$f":"IFERROR(BendrosiosIrAdministracinės[[#Totals],[Dabartinis Laikotarpis]]/SUBTOTAL(109,PardavimoPajamos[Dabartinis Laikotarpis]),0)","v":{"v":1.1333333333333333,"d":"113.3%"}},{"$f":"IFERROR(BendrosiosIrAdministracinės[[#Totals],[Dabartinis Laikotarpis]]/BendrosiosIrAdministracinės[[#Totals],[Ankstesnis Laikotarpis]]-1,0)","v":0},{"$f":"IFERROR(BendrosiosIrAdministracinės[[#Totals],[Dabartinis Laikotarpis]]/BendrosiosIrAdministracinės[[#Totals],[Biudžetas]]-1,0)","v":{"v":-0.0892857142857143,"d":"-8.9%"}}]
[]
[]
[null,"Veiklos išlaidos: kitos"]
[]
[null,"1 kitos veiklos išlaidos",null,null,10,null,null,{"$f":"IFERROR(KitųOperaciniųIšlaidųKategorija[[#This Row],[Dabartinis Laikotarpis]]/SUBTOTAL(109,PardavimoPajamos[Dabartinis Laikotarpis]),0)","v":0},{"$f":"IFERROR(KitųOperaciniųIšlaidųKategorija[[#This Row],[Dabartinis Laikotarpis]]/KitųOperaciniųIšlaidųKategorija[[#This Row],[Ankstesnis Laikotarpis]]-1,0)","v":0},{"$f":"IFERROR(KitųOperaciniųIšlaidųKategorija[[#This Row],[Dabartinis Laikotarpis]]/KitųOperaciniųIšlaidųKategorija[[#This Row],[Biudžetas]]-1,0)","v":{"v":-1,"d":"-100.0%"}}]
[null,"2 kitos veiklos išlaidos",{"$nulls":5},{"$f":"IFERROR(KitųOperaciniųIšlaidųKategorija[[#This Row],[Dabartinis Laikotarpis]]/SUBTOTAL(109,PardavimoPajamos[Dabartinis Laikotarpis]),0)","v":0},{"$f":"IFERROR(KitųOperaciniųIšlaidųKategorija[[#This Row],[Dabartinis Laikotarpis]]/KitųOperaciniųIšlaidųKategorija[[#This Row],[Ankstesnis Laikotarpis]]-1,0)","v":0},{"$f":"IFERROR(KitųOperaciniųIšlaidųKategorija[[#This Row],[Dabartinis Laikotarpis]]/KitųOperaciniųIšlaidųKategorija[[#This Row],[Biudžetas]]-1,0)","v":0}]
[null,"Iš viso",null,{"$f":"SUBTOTAL(109,KitųOperaciniųIšlaidųKategorija[Ankstesnis Laikotarpis])","v":0},{"$f":"SUBTOTAL(109,KitųOperaciniųIšlaidųKategorija[Biudžetas])","v":10},{"$f":"SUBTOTAL(109,KitųOperaciniųIšlaidųKategorija[Dabartinis Laikotarpis])","v":0},null,{"$f":"IFERROR(KitųOperaciniųIšlaidųKategorija[[#Totals],[Dabartinis Laikotarpis]]/SUBTOTAL(109,PardavimoPajamos[Dabartinis Laikotarpis]),0)","v":0},{"$f":"IFERROR(KitųOperaciniųIšlaidųKategorija[[#Totals],[Dabartinis Laikotarpis]]/KitųOperaciniųIšlaidųKategorija[[#Totals],[Ankstesnis Laikotarpis]]-1,0)","v":0},{"$f":"IFERROR(KitųOperaciniųIšlaidųKategorija[[#Totals],[Dabartinis Laikotarpis]]/KitųOperaciniųIšlaidųKategorija[[#Totals],[Biudžetas]]-1,0)","v":{"v":-1,"d":"-100.0%"}}]
[]
[null,"Bendrosios veiklos išlaidos",null,{"$f":"SUM(PardavimasIrRinkodara[Ankstesnis Laikotarpis],BendrosiosIrAdministracinės[Ankstesnis Laikotarpis],KitųOperaciniųIšlaidųKategorija[Ankstesnis Laikotarpis])","v":0},{"$f":"SUM(PardavimasIrRinkodara[Biudžetas],BendrosiosIrAdministracinės[Biudžetas],KitųOperaciniųIšlaidųKategorija[Biudžetas])","v":88},{"$f":"SUM(PardavimasIrRinkodara[Dabartinis Laikotarpis],BendrosiosIrAdministracinės[Dabartinis Laikotarpis],KitųOperaciniųIšlaidųKategorija[Dabartinis Laikotarpis])","v":70},null,{"$f":"IFERROR(F52/SUBTOTAL(109,PardavimoPajamos[Dabartinis Laikotarpis]),0)","v":{"v":1.5555555555555556,"d":"155.6%"}},{"$f":"IFERROR(F52/D52-1,0)","v":0},{"$f":"IFERROR(F52/E52-1,0)","v":{"v":-0.20454545454545459,"d":"-20.5%"}}]
[]
[null,"Operacijų pajamos",null,{"$f":"D21-D52","v":40},{"$f":"E21-E52","v":-45},{"$f":"F21-F52","v":-32},null,{"$f":"IFERROR(F54/SUBTOTAL(109,PardavimoPajamos[Dabartinis Laikotarpis]),0)","v":{"v":-0.7111111111111111,"d":"-71.1%"}},{"$f":"IFERROR(IF(D54=F54,0,IF(F54>D54,ABS((F54/D54)-1),IF(AND(F54<D54,D54<0),-((F54/D54)-1),(F54/D54)-1))),0)","v":{"v":-1.8,"d":"-180.0%"}},{"$f":"IFERROR(IF(E54=F54,0,IF(F54>E54,ABS((F54/E54)-1),IF(AND(F54<E54,E54<0),-((F54/E54)-1),(F54/E54)-1))),0)","v":{"v":0.28888888888888886,"d":"28.9%"}}]
[]
[null,"Kitos pajamos",{"$nulls":5},{"$f":"IFERROR(F56/SUBTOTAL(109,PardavimoPajamos[Dabartinis Laikotarpis]),0)","v":0},{"$f":"IFERROR(F56/D56-1,0)","v":0},{"$f":"IFERROR(F56/E56-1,0)","v":0}]
[]
[null,"Mokesčiai"]
[]
[null,"Pajamų mokesčiai",null,null,32,30,null,{"$f":"IFERROR(Mokesčiai[[#This Row],[Dabartinis Laikotarpis]]/SUBTOTAL(109,PardavimoPajamos[Dabartinis Laikotarpis]),0)","v":{"v":0.6666666666666666,"d":"66.7%"}},{"$f":"IFERROR(Mokesčiai[[#This Row],[Dabartinis Laikotarpis]]/Mokesčiai[[#This Row],[Ankstesnis Laikotarpis]]-1,0)","v":0},{"$f":"IFERROR(Mokesčiai[[#This Row],[Dabartinis Laikotarpis]]/Mokesčiai[[#This Row],[Biudžetas]]-1,0)","v":{"v":-0.0625,"d":"-6.3%"}}]
[null,"Atlyginimų mokesčiai",{"$nulls":5},{"$f":"IFERROR(Mokesčiai[[#This Row],[Dabartinis Laikotarpis]]/SUBTOTAL(109,PardavimoPajamos[Dabartinis Laikotarpis]),0)","v":0},{"$f":"IFERROR(Mokesčiai[[#This Row],[Dabartinis Laikotarpis]]/Mokesčiai[[#This Row],[Ankstesnis Laikotarpis]]-1,0)","v":0},{"$f":"IFERROR(Mokesčiai[[#This Row],[Dabartinis Laikotarpis]]/Mokesčiai[[#This Row],[Biudžetas]]-1,0)","v":0}]
[null,"Nekilnojamojo turto mokesčiai",{"$nulls":5},{"$f":"IFERROR(Mokesčiai[[#This Row],[Dabartinis Laikotarpis]]/SUBTOTAL(109,PardavimoPajamos[Dabartinis Laikotarpis]),0)","v":0},{"$f":"IFERROR(Mokesčiai[[#This Row],[Dabartinis Laikotarpis]]/Mokesčiai[[#This Row],[Ankstesnis Laikotarpis]]-1,0)","v":0},{"$f":"IFERROR(Mokesčiai[[#This Row],[Dabartinis Laikotarpis]]/Mokesčiai[[#This Row],[Biudžetas]]-1,0)","v":0}]
[null,"Kiti mokesčiai (nurodyti)",{"$nulls":5},{"$f":"IFERROR(Mokesčiai[[#This Row],[Dabartinis Laikotarpis]]/SUBTOTAL(109,PardavimoPajamos[Dabartinis Laikotarpis]),0)","v":0},{"$f":"IFERROR(Mokesčiai[[#This Row],[Dabartinis Laikotarpis]]/Mokesčiai[[#This Row],[Ankstesnis Laikotarpis]]-1,0)","v":0},{"$f":"IFERROR(Mokesčiai[[#This Row],[Dabartinis Laikotarpis]]/Mokesčiai[[#This Row],[Biudžetas]]-1,0)","v":0}]
[null,"Iš viso",null,{"$f":"SUBTOTAL(109,Mokesčiai[Ankstesnis Laikotarpis])","v":0},{"$f":"SUBTOTAL(109,Mokesčiai[Biudžetas])","v":32},{"$f":"SUBTOTAL(109,Mokesčiai[Dabartinis Laikotarpis])","v":30},null,{"$f":"IFERROR(Mokesčiai[[#Totals],[Dabartinis Laikotarpis]]/SUBTOTAL(109,PardavimoPajamos[Dabartinis Laikotarpis]),0)","v":{"v":0.6666666666666666,"d":"66.7%"}},{"$f":"IFERROR(Mokesčiai[[#Totals],[Dabartinis Laikotarpis]]/Mokesčiai[[#Totals],[Ankstesnis Laikotarpis]]-1,0)","v":0},{"$f":"IFERROR(Mokesčiai[[#Totals],[Dabartinis Laikotarpis]]/Mokesčiai[[#Totals],[Biudžetas]]-1,0)","v":{"v":-0.0625,"d":"-6.3%"}}]
[]
[null,"Grynasis pelnas",null,{"$f":"D54+D56-Mokesčiai[[#Totals],[Ankstesnis Laikotarpis]]","v":40},{"$f":"E54+E56-Mokesčiai[[#Totals],[Ankstesnis Laikotarpis]]","v":-45},{"$f":"F54+F56-Mokesčiai[[#Totals],[Ankstesnis Laikotarpis]]","v":-32},null,{"$f":"IFERROR(F66/SUBTOTAL(109,PardavimoPajamos[Dabartinis Laikotarpis]),0)","v":{"v":-0.7111111111111111,"d":"-71.1%"}},{"$f":"IFERROR(IF(D66=F66,0,IF(F66>D66,ABS((F66/D66)-1),IF(AND(F66<D66,D66<0),-((F66/D66)-1),(F66/D66)-1))),0)","v":{"v":-1.8,"d":"-180.0%"}},{"$f":"IFERROR(IF(E66=F66,0,IF(F66>E66,ABS((F66/E66)-1),IF(AND(F66<E66,E66<0),-((F66/E66)-1),(F66/E66)-1))),0)","v":{"v":0.28888888888888886,"d":"28.9%"}}]
[null,"Bendrasis pelnas",null,{"$f":"D21/SUM(PardavimoPajamos[Ankstesnis Laikotarpis])","v":{"v":1,"d":"100.0%"}},{"$f":"E21/SUM(PardavimoPajamos[Biudžetas])","v":{"v":0.86,"d":"86.0%"}},{"$f":"F21/SUM(PardavimoPajamos[Dabartinis Laikotarpis])","v":{"v":0.8444444444444444,"d":"84.4%"}}]
[null,"Pardavimo grąža",null,{"$f":"D66/SUM(PardavimoPajamos[Ankstesnis Laikotarpis])","v":{"v":1,"d":"100.0%"}},{"$f":"E66/SUM(PardavimoPajamos[Biudžetas])","v":{"v":-0.9,"d":"-90.0%"}},{"$f":"F66/SUM(PardavimoPajamos[Dabartinis Laikotarpis])","v":{"v":-0.7111111111111111,"d":"-71.1%"}}]